bitfinex/quotes_BTCUSD_20240712
["timestamp","ask_amount","ask_price","bid_price","bid_amount"]
[1720751390301,0.06006315,57319.0,57318.0,0.30645721]
[1720751390922,0.19077019,57319.0,57318.0,0.30645721]
[1720751391331,0.19077019,57319.0,57318.0,0.24525721]
[1720751391542,0.19032427,57319.0,57318.0,0.24525721]
[1720751392032,0.19004284,57319.0,57318.0,0.24525721]
[1720751392756,0.05926656,57319.0,57318.0,0.24525721]
[1720751392965,0.05926656,57319.0,57318.0,0.28461437]
[1720751394151,0.05947728,57319.0,57318.0,0.28461437]
[1720751394721,0.02832302,57319.0,57318.0,0.28461437]
[1720751395090,0.09037496,57319.0,57318.0,0.28461437]
[1720751395878,0.09037496,57319.0,57318.0,0.13763816]
[1720751396455,0.09037496,57319.0,57318.0,0.28461437]
[1720751396907,0.06802893,57320.0,57318.0,0.28461437]
[1720751397261,0.06802893,57320.0,57319.0,0.19061799]
[1720751397429,0.00083,57322.0,57321.0,0.14697621]
[1720751397632,0.02814808,57322.0,57321.0,0.14697621]
[1720751398338,0.02814808,57322.0,57319.0,0.04364178]
[1720751398596,0.02814808,57322.0,57321.0,0.23209056]
[1720751398597,0.00083,57322.0,57321.0,0.23209056]
[1720751398750,0.02814858,57322.0,57321.0,0.23209056]
[1720751398948,0.02814858,57322.0,57321.0,0.08511435]
[1720751399329,0.02914858,57322.0,57321.0,0.23209056]
[1720751399530,0.02914858,57322.0,57321.0,0.27133958]
[1720751400428,0.02914858,57322.0,57321.0,0.39633958]
[1720751400894,0.02914858,57322.0,57321.0,1.08223458]
[1720751401101,0.02914858,57322.0,57321.0,0.41163958]
[1720751401643,0.02914858,57322.0,57321.0,0.37239056]
[1720751402047,0.02914858,57322.0,57321.0,0.28727621]
[1720751402494,0.02814858,57322.0,57321.0,0.0753]
[1720751402693,0.02814858,57322.0,57321.0,0.04047621]
[1720751402893,0.02914858,57322.0,57321.0,0.14697621]
[1720751403429,0.02814858,57322.0,57321.0,0.14697621]
[1720751404834,0.02814858,57322.0,57320.0,0.14697621]
[1720751405034,0.02731858,57321.0,57320.0,0.14697621]
[1720751405209,0.05684013,57321.0,57320.0,0.14697621]
[1720751406037,0.05684013,57321.0,57320.0,0.15297621]
[1720751406625,0.05684013,57321.0,57320.0,0.17825085]
[1720751406827,0.05684013,57321.0,57320.0,0.50417185]
[1720751407026,0.05684013,57321.0,57320.0,0.75541385]
[1720751407027,0.05784013,57321.0,57320.0,0.75541385]
[1720751407575,0.05773954,57321.0,57320.0,0.51117185]
[1720751408129,0.05773954,57321.0,57320.0,0.32905085]
[1720751408674,0.05673954,57321.0,57320.0,0.32205085]
[1720751408896,0.05773954,57321.0,57320.0,0.32205085]
[1720751409381,0.05773954,57321.0,57320.0,0.29077621]
[1720751409535,0.05673954,57321.0,57320.0,0.29077621]
[1720751409737,0.05773954,57321.0,57320.0,0.29077621]
[1720751410346,0.05673954,57321.0,57320.0,0.29077621]
[1720751410692,0.05678137,57321.0,57320.0,0.14697621]
[1720751411591,0.05678137,57321.0,57318.0,0.020481]
[1720751411793,0.05678137,57320.0,57319.0,0.14697621]
[1720751412173,0.05678137,57320.0,57318.0,0.020481]
[1720751412375,0.05678137,57319.0,57318.0,0.16745721]
[1720751412778,0.05655813,57319.0,57318.0,0.20759327]
[1720751413387,0.05655813,57319.0,57318.0,0.18259327]
[1720751414030,0.02731858,57319.0,57318.0,0.18259327]
[1720751414368,0.00083,57322.0,57321.0,0.14245721]
[1720751414573,0.02814806,57322.0,57321.0,0.20245721]
[1720751414775,0.02814806,57322.0,57321.0,0.22706545]
[1720751415161,0.02814806,57322.0,57321.0,0.20245721]
[1720751415518,0.02814806,57322.0,57321.0,0.14245721]
[1720751415977,0.02814806,57322.0,57321.0,0.28314611]
[1720751416111,0.02814806,57322.0,57321.0,0.46526511]
[1720751416310,0.02814806,57322.0,57321.0,0.79461746]
[1720751416514,0.02814806,57322.0,57321.0,0.89708543]
[1720751416959,0.02914806,57322.0,57321.0,0.47072843]
[1720751417395,0.02814806,57322.0,57321.0,0.47072843]
[1720751417926,0.02914806,57322.0,57321.0,0.53072843]
[1720751418582,0.02914806,57322.0,57321.0,0.47072843]
[1720751418817,0.02914806,57322.0,57320.0,0.04047621]
[1720751419000,0.00183,57322.0,57321.0,0.14245721]
[1720751419392,0.02914836,57322.0,57321.0,0.14245721]
[1720751419746,0.02814836,57322.0,57321.0,0.14245721]
[1720751419951,0.02814836,57322.0,57320.0,0.04047621]
[1720751420147,0.00183,57322.0,57320.0,0.04047621]
[1720751420350,0.18738859,57321.0,57320.0,0.04138921]
[1720751420551,0.03038346,57321.0,57320.0,0.14337021]
[1720751420755,0.21422946,57321.0,57320.0,0.14337021]
[1720751421137,0.05718635,57321.0,57320.0,0.14337021]
[1720751421536,0.05718635,57321.0,57320.0,0.17400867]
[1720751421937,0.05718635,57321.0,57320.0,0.000913]
[1720751422481,0.05718635,57321.0,57320.0,0.14337021]
[1720751423863,0.05718635,57321.0,57320.0,0.000913]
[1720751423864,0.02731993,57321.0,57320.0,0.000913]
[1720751424070,0.05688125,57321.0,57320.0,0.14685908]
[1720751424265,0.05788125,57321.0,57320.0,0.24035755]
[1720751424488,0.05788306,57321.0,57320.0,0.24035755]
[1720751425707,0.05688306,57321.0,57320.0,0.24035755]
[1720751426971,0.05688306,57321.0,57320.0,0.36247855]
[1720751427168,0.02831993,57321.0,57320.0,0.74752055]
[1720751427916,0.02731993,57321.0,57320.0,0.74752055]
[1720751428231,0.02831993,57321.0,57320.0,0.74752055]
[1720751428437,0.05869588,57321.0,57320.0,0.32115755]
[1720751428874,0.05769588,57321.0,57320.0,0.38115755]
[1720751429078,0.05769588,57321.0,57320.0,0.50327855]
[1720751429079,0.05869588,57321.0,57320.0,0.50327855]
[1720751429279,0.18959822,57321.0,57320.0,0.50327855]
[1720751429624,0.05869588,57321.0,57320.0,0.50327855]
[1720751430408,0.18959822,57321.0,57320.0,0.50327855]
[1720751430811,0.18959822,57321.0,57320.0,0.74752055]
[1720751430812,0.19028087,57321.0,57320.0,0.74752055]
[1720751431045,0.05933361,57321.0,57320.0,0.50327855]
[1720751432356,0.05933361,57321.0,57320.0,0.32115755]
[1720751432784,0.19028087,57321.0,57320.0,0.32115755]
[1720751433158,0.05933361,57321.0,57320.0,0.32115755]
[1720751433488,0.19028087,57321.0,57320.0,0.32115755]
[1720751433905,0.19028087,57321.0,57320.0,0.28417021]
[1720751434104,0.02831993,57321.0,57320.0,0.28417021]
[1720751434707,0.19025843,57321.0,57320.0,0.28417021]
[1720751435513,0.05929919,57321.0,57320.0,0.28417021]
[1720751436371,0.19025877,57321.0,57320.0,0.28417021]
[1720751436537,0.05929919,57321.0,57320.0,0.33931137]
[1720751437579,0.05951753,57321.0,57320.0,0.33931137]
[1720751437810,0.12101753,57321.0,57320.0,0.000913]
[1720751438012,0.36273933,57321.0,57320.0,0.000913]
[1720751438212,0.20558106,57321.0,57320.0,0.000913]
[1720751438633,0.50143959,57321.0,57320.0,0.000913]
[1720751438843,0.52443959,57321.0,57320.0,0.000913]
[1720751439055,0.52750312,57321.0,57320.0,0.000913]
[1720751439229,0.38238412,57321.0,57320.0,0.000913]
[1720751439429,0.38138412,57321.0,57320.0,0.000913]
[1720751439960,0.14001753,57321.0,57320.0,0.005913]
[1720751440496,0.40450006,57321.0,57320.0,0.005913]
[1720751440723,0.60430312,57321.0,57320.0,0.005913]
[1720751440925,0.60786096,57321.0,57320.0,0.005913]
[1720751441123,0.85209896,57321.0,57320.0,0.005913]
[1720751441491,0.84903543,57321.0,57320.0,0.000913]
[1720751441902,0.84903543,57321.0,57320.0,0.005913]
[1720751442434,0.84903543,57321.0,57320.0,0.000913]
[1720751442840,0.85203543,57321.0,57320.0,0.000913]
[1720751443041,0.67525478,57321.0,57320.0,0.000913]
[1720751443267,0.85195379,57321.0,57320.0,0.000913]
[1720751444281,0.67525478,57321.0,57320.0,0.000913]
[1720751444484,0.85223563,57321.0,57320.0,0.000913]
[1720751444839,0.85221227,57321.0,57320.0,0.000913]
[1720751445262,0.67554056,57321.0,57320.0,0.000913]
[1720751445459,0.67860409,57321.0,57320.0,0.000913]
[1720751446866,0.67554056,57321.0,57320.0,0.000913]
[1720751447405,0.92284209,57321.0,57320.0,0.000913]
[1720751447521,0.88471493,57321.0,57320.0,0.000913]
[1720751447716,0.92047025,57321.0,57320.0,0.000913]
[1720751447977,1.09070765,57321.0,57320.0,0.000913]
[1720751448774,0.92047025,57321.0,57320.0,0.000913]
[1720751449576,1.09704153,57321.0,57320.0,0.000913]
[1720751449779,0.77130353,57321.0,57320.0,0.000913]
[1720751449957,0.77130353,57321.0,57320.0,0.04138921]
[1720751449958,0.06607525,57321.0,57320.0,0.04138921]
[1720751450180,0.14757525,57321.0,57320.0,0.12650356]
[1720751450392,0.14757525,57321.0,57320.0,0.39433302]
[1720751450393,0.06607525,57321.0,57320.0,0.39433302]
[1720751450888,0.06607525,57321.0,57320.0,0.45433302]
[1720751451089,0.06693812,57321.0,57320.0,0.45433302]
[1720751451296,0.06693812,57321.0,57320.0,0.57645402]
[1720751451638,0.4715,57339.0,57320.0,0.57645402]
[1720751451639,0.21223807,57327.0,57326.0,0.21775721]
[1720751451760,0.10881531,57327.0,57326.0,0.21775721]
[1720751452064,0.02731531,57327.0,57326.0,0.21775721]
[1720751452257,0.0815,57328.0,57327.0,0.14245721]
[1720751452466,0.1088158,57328.0,57327.0,0.14245721]
[1720751452670,0.0273158,57328.0,57327.0,0.14245721]
[1720751452906,0.15689471,57333.0,57332.0,0.14245721]
[1720751453101,0.18421062,57333.0,57332.0,0.14245721]
[1720751453304,0.02731591,57333.0,57332.0,0.20305721]
[1720751453504,0.01587319,57338.0,57337.0,0.14245721]
[1720751453812,0.02731231,57338.0,57337.0,0.14245721]
[1720751454726,0.02731231,57338.0,57334.0,0.0807]
[1720751454923,0.02731231,57338.0,57337.0,0.20245721]
[1720751455151,0.15682823,57350.0,57342.0,0.06]
[1720751455366,0.0644,57357.0,57340.0,0.38661421]
[1720751455367,0.15682823,57354.0,57353.0,0.14245721]
[1720751455549,0.15682823,57356.0,57355.0,0.14245721]
[1720751455722,0.2038,57360.0,57358.0,0.14245721]
[1720751455723,0.15682823,57359.0,57358.0,0.14245721]
[1720751455923,0.18413241,57359.0,57358.0,0.14245721]
[1720751456323,0.15779591,57359.0,57358.0,0.14245721]
[1720751456525,0.02730418,57359.0,57358.0,0.14245721]
[1720751457341,0.02730418,57359.0,57358.0,0.15670293]
[1720751457342,0.02830418,57359.0,57358.0,0.15670293]
[1720751457743,0.02830418,57359.0,57358.0,0.05472193]
[1720751457943,0.02830418,57359.0,57355.0,0.04047621]
[1720751457944,0.23110418,57359.0,57355.0,0.04047621]
[1720751458145,0.23110418,57359.0,57354.0,0.04047621]
[1720751458146,0.02730418,57358.0,57354.0,0.04047621]
[1720751458526,0.122046,57355.0,57347.0,0.04047621]
[1720751458730,0.2038,57351.0,57349.0,0.04047621]
[1720751458977,0.02730418,57350.0,57346.0,0.04047621]
[1720751459181,0.0626195,57350.0,57339.0,0.04047621]
[1720751459414,0.122063,57348.0,57341.0,0.04047621]
[1720751459594,0.03531532,57350.0,57341.0,0.04047621]
[1720751459595,0.05958273,57347.0,57341.0,0.04047621]
[1720751459737,0.05958273,57346.0,57342.0,0.04047621]
[1720751459937,0.05958273,57345.0,57344.0,0.04047621]
[1720751460157,0.05958273,57345.0,57340.0,0.04047621]
[1720751460360,0.12378273,57344.0,57333.0,0.22757156]
[1720751460576,0.03036771,57343.0,57339.0,0.005]
[1720751460750,0.02730418,57342.0,57339.0,0.005]
[1720751460951,0.0358519,57341.0,57339.0,0.005]
[1720751461253,0.06007653,57340.0,57336.0,0.04047621]
[1720751461495,0.02730418,57339.0,57336.0,0.04047621]
[1720751461757,0.02730418,57338.0,57330.0,0.04047621]
[1720751461896,0.00306353,57337.0,57331.0,0.04047621]
[1720751462100,0.06008335,57336.0,57331.0,0.04047621]
[1720751462297,0.06008335,57336.0,57326.0,0.0646]
[1720751462298,0.03036771,57335.0,57334.0,0.04047621]
[1720751462506,0.03036771,57335.0,57334.0,0.12559056]
[1720751462729,0.02730418,57335.0,57334.0,0.22757156]
[1720751462924,0.00306353,57343.0,57336.0,0.14245721]
[1720751463125,0.06002551,57342.0,57331.0,0.04047621]
[1720751463344,0.18587192,57341.0,57331.0,0.04047621]
[1720751463481,0.06073239,57340.0,57334.0,0.08511435]
[1720751463675,0.22952236,57343.0,57337.0,0.04047621]
[1720751463676,0.0303749,57339.0,57337.0,0.04047621]
[1720751463976,0.02731137,57338.0,57337.0,0.14245721]
[1720751464361,0.002,57341.0,57340.0,0.14245721]
[1720751464717,0.00306353,57344.0,57343.0,0.06]
[1720751464914,0.00306353,57344.0,57343.0,0.14245721]
[1720751464915,0.03037197,57344.0,57343.0,0.14245721]
[1720751465123,0.02730844,57344.0,57343.0,0.14245721]
[1720751465342,0.01504319,57348.0,57344.0,0.04047621]
[1720751465507,0.4199766,57362.0,57346.0,0.14245721]
[1720751465508,0.0638346,57347.0,57346.0,0.14245721]
[1720751465751,0.03037201,57347.0,57346.0,0.14245721]
[1720751465947,0.4715,57354.0,57352.0,0.14245721]
[1720751465948,0.00306353,57353.0,57352.0,0.14245721]
[1720751466149,0.06382253,57353.0,57352.0,0.14245721]
[1720751466312,0.02730655,57353.0,57352.0,0.14245721]
[1720751466714,0.00306353,57360.0,57359.0,0.04047621]
[1720751466975,0.04876067,57360.0,57359.0,0.04047621]
[1720751467178,0.0760648,57360.0,57359.0,0.04047621]
[1720751467405,0.06100951,57360.0,57359.0,0.04047621]
[1720751467706,0.06100951,57360.0,57359.0,0.14245721]
[1720751468146,0.06300951,57360.0,57359.0,0.14245721]
[1720751468351,0.02930413,57360.0,57359.0,0.14245721]
[1720751468467,0.002,57360.0,57359.0,0.21785721]
[1720751468674,0.00306353,57367.0,57366.0,0.14245721]
[1720751468934,0.00306353,57367.0,57365.0,0.04047621]
[1720751468935,0.0303628,57367.0,57365.0,0.04047621]
[1720751469149,0.01508402,57371.0,57366.0,0.04047621]
[1720751469351,0.06018395,57370.0,57366.0,0.04047621]
[1720751469560,0.02729891,57369.0,57366.0,0.04047621]
[1720751469785,0.325806,57374.0,57359.0,0.0754]
[1720751469786,0.02729891,57373.0,57359.0,0.11587621]
[1720751469939,0.02729891,57373.0,57362.0,0.04047621]
[1720751469940,0.2038,57368.0,57362.0,0.04047621]
[1720751470264,0.325819,57368.0,57362.0,0.04047621]
[1720751470398,0.00306353,57366.0,57362.0,0.03947621]
[1720751470850,0.2038,57368.0,57365.0,0.03947621]
[1720751470851,0.00306353,57367.0,57365.0,0.03947621]
[1720751471046,0.00306353,57367.0,57356.0,0.00348669]
[1720751471047,0.00306353,57367.0,57366.0,0.14145721]
[1720751471244,0.00306353,57373.0,57368.0,0.03947621]
[1720751471447,0.05029916,57372.0,57367.0,0.03947621]
[1720751471649,0.05029916,57372.0,57362.0,0.03947621]
[1720751471650,0.02729916,57371.0,57362.0,0.03947621]
[1720751471968,0.002,57368.0,57363.0,0.01449436]
[1720751472143,0.002,57368.0,57362.0,0.03947621]
[1720751472468,0.002,57368.0,57364.0,0.03947621]
[1720751473050,0.002,57368.0,57365.0,0.03947621]
[1720751473225,0.002,57368.0,57367.0,0.14145721]
[1720751473571,0.002,57368.0,57367.0,0.03947621]
[1720751473800,0.02606353,57372.0,57365.0,0.03947621]
[1720751474108,0.03106353,57372.0,57367.0,0.04047621]
[1720751474313,0.03106353,57372.0,57367.0,0.001]
[1720751474515,0.5,57371.0,57367.0,0.04047621]
[1720751474747,0.00306353,57370.0,57368.0,0.03947621]
[1720751475074,0.00306353,57371.0,57368.0,0.03947621]
[1720751475771,0.00306353,57371.0,57370.0,0.13945721]
[1720751475973,0.023,57373.0,57372.0,0.13945721]
[1720751476311,0.01474409,57377.0,57376.0,0.03747621]
[1720751476513,0.16725228,57378.0,57377.0,0.03747621]
[1720751476714,0.16725228,57378.0,57373.0,0.03747621]
[1720751476922,0.16725228,57378.0,57374.0,0.03747621]
[1720751476923,0.66725228,57378.0,57374.0,0.03747621]
[1720751477225,0.66725228,57378.0,57368.0,0.0639]
[1720751477226,0.66725228,57378.0,57369.0,0.03747621]
[1720751477399,0.66725228,57378.0,57367.0,0.0832]
[1720751477400,0.99305128,57378.0,57367.0,0.0832]
[1720751477599,0.99305128,57378.0,57363.0,0.0639]
[1720751477600,0.006,57371.0,57369.0,0.03747621]
[1720751477890,0.006,57371.0,57362.0,0.03747621]
[1720751478111,0.0601,57370.0,57365.0,0.03747621]
[1720751478316,0.00306353,57369.0,57365.0,0.03747621]
[1720751478832,0.00306353,57369.0,57361.0,0.075]
[1720751479050,0.5,57363.0,57350.0,0.03747621]
[1720751479250,0.5,57363.0,57349.0,0.075]
[1720751479251,0.244078,57359.0,57349.0,0.075]
[1720751479466,0.182143,57357.0,57349.0,0.075]
[1720751479873,0.0601,57357.0,57349.0,0.075]
[1720751480076,0.2038,57355.0,57349.0,0.075]
[1720751480277,0.2038,57355.0,57348.0,0.03747621]
[1720751480526,0.0385943,57354.0,57346.0,0.09747621]
[1720751480695,0.32586,57349.0,57344.0,0.079]
[1720751480930,0.34540835,57349.0,57340.0,0.09747621]
[1720751481135,0.72334835,57349.0,57337.0,0.0788]
[1720751481351,0.244163,57339.0,57331.0,0.0807]
[1720751481561,0.2038,57334.0,57324.0,0.03747621]
[1720751481769,0.2038,57334.0,57320.0,0.000913]
[1720751481770,0.122109,57326.0,57320.0,0.000913]
[1720751481981,0.2038,57328.0,57321.0,0.03747621]
[1720751482186,0.07038,57333.0,57324.0,0.03747621]
[1720751482362,0.2038,57334.0,57329.0,0.03747621]
[1720751482563,0.2038,57334.0,57331.0,0.03747621]
[1720751482767,0.2038,57334.0,57330.0,0.03747621]
[1720751483409,0.0273171,57333.0,57330.0,0.03747621]
[1720751484191,0.0273171,57333.0,57330.0,0.12259056]
[1720751484401,0.0273171,57333.0,57331.0,0.03747621]
[1720751484577,0.0273171,57333.0,57332.0,0.03747621]
[1720751484778,0.0273171,57333.0,57331.0,0.03747621]
[1720751485054,0.1,57338.0,57334.0,0.03747621]
[1720751485225,0.5,57338.0,57334.0,0.03747621]
[1720751485461,0.02731441,57337.0,57334.0,0.03747621]
[1720751485796,0.122088,57336.0,57330.0,0.12259056]
[1720751485996,0.001,57333.0,57330.0,0.03747621]
[1720751486622,0.2038,57334.0,57330.0,0.03747621]
[1720751486835,0.2038,57334.0,57331.0,0.03747621]
[1720751487050,0.2038,57334.0,57330.0,0.18709535]
[1720751487051,0.1,57339.0,57334.0,0.03747621]
[1720751487250,0.28160166,57341.0,57336.0,0.03747621]
[1720751487251,0.02731342,57338.0,57336.0,0.03747621]
[1720751487459,0.02731342,57339.0,57337.0,0.03747621]
[1720751487628,0.02731342,57339.0,57330.0,0.08511435]
[1720751487629,0.02731342,57339.0,57334.0,0.03747621]
[1720751488268,0.87105228,57342.0,57334.0,0.03847621]
[1720751488430,0.1,57341.0,57334.0,0.03847621]
[1720751488802,0.1,57341.0,57330.0,0.23331435]
[1720751488803,0.1,57341.0,57337.0,0.03747621]
[1720751488943,0.1,57341.0,57331.0,0.03747621]
[1720751489145,0.1,57341.0,57330.0,0.03747621]
[1720751489146,0.122083,57338.0,57330.0,0.03747621]
[1720751489476,0.2038,57335.0,57330.0,0.03747621]
[1720751489831,0.2038,57335.0,57334.0,0.000913]
[1720751490145,0.3078,57341.0,57335.0,0.03747621]
[1720751490346,0.12208,57339.0,57334.0,0.000913]
[1720751490601,0.222084,57338.0,57334.0,0.000913]
[1720751490785,0.222084,57338.0,57334.0,0.01326336]
[1720751490971,0.145086,57337.0,57334.0,0.000913]
[1720751491918,0.023,57337.0,57334.0,0.000913]
[1720751492093,0.023,57337.0,57334.0,0.03838921]
[1720751492475,0.023,57337.0,57334.0,0.000913]
[1720751493071,0.023,57337.0,57334.0,0.001913]
[1720751493503,0.023,57337.0,57334.0,0.000913]
[1720751495223,0.026,57337.0,57334.0,0.000913]
[1720751495622,0.023,57337.0,57334.0,0.000913]
[1720751496031,0.027,57337.0,57334.0,0.000913]
[1720751496787,0.023,57337.0,57334.0,0.03838921]
[1720751496989,0.026,57337.0,57334.0,0.03838921]
[1720751498297,0.003,57337.0,57336.0,0.22457156]
[1720751498506,0.003,57337.0,57336.0,0.28697156]
[1720751498887,0.003,57337.0,57336.0,0.0624]
[1720751499095,0.01542509,57342.0,57336.0,0.0624]
[1720751499291,0.466208,57345.0,57336.0,0.0624]
[1720751499493,0.004,57337.0,57336.0,0.0624]
[1720751499928,0.004,57337.0,57335.0,0.0756]
[1720751500125,0.5,57342.0,57335.0,0.0756]
[1720751500483,0.122079,57340.0,57335.0,0.0756]
[1720751500752,0.122079,57340.0,57334.0,0.000913]
[1720751500947,0.023,57339.0,57334.0,0.000913]
[1720751501531,0.023,57339.0,57334.0,0.03838921]
[1720751501708,0.023,57340.0,57335.0,0.03747621]
[1720751502548,0.16658937,57340.0,57335.0,0.03747621]
[1720751503343,0.16658937,57340.0,57334.0,0.03838921]
[1720751503610,0.023,57340.0,57334.0,0.03838921]
[1720751503922,0.145079,57340.0,57334.0,0.03838921]
[1720751504135,0.03264206,57339.0,57334.0,0.03838921]
[1720751504343,0.146079,57340.0,57334.0,0.03838921]
[1720751504564,0.15472467,57339.0,57334.0,0.000913]
[1720751504754,0.17772567,57338.0,57334.0,0.000913]
[1720751504893,0.145083,57338.0,57334.0,0.000913]
[1720751505109,0.023,57338.0,57334.0,0.03838921]
[1720751505737,0.145083,57338.0,57334.0,0.000913]
[1720751505937,0.03136496,57337.0,57334.0,0.000913]
[1720751506141,0.2038,57335.0,57334.0,0.000913]
[1720751506315,0.23516496,57335.0,57334.0,0.000913]
[1720751506516,0.25816496,57335.0,57334.0,0.000913]
[1720751506810,0.25822658,57335.0,57334.0,0.000913]
[1720751507771,0.38431558,57335.0,57334.0,0.000913]
[1720751508012,0.51132215,57335.0,57334.0,0.000913]
[1720751508847,0.05442658,57335.0,57334.0,0.000913]
[1720751510126,0.05650313,57335.0,57334.0,0.000913]
[1720751510455,0.06050313,57335.0,57334.0,0.000913]
[1720751511056,0.05650313,57335.0,57334.0,0.000913]
[1720751511855,0.05750313,57335.0,57334.0,0.000913]
[1720751512075,0.03450313,57335.0,57334.0,0.03838921]
[1720751512301,0.03450313,57335.0,57334.0,0.11738921]
[1720751512645,0.03450313,57335.0,57334.0,0.21937021]
[1720751513647,0.03450313,57335.0,57334.0,0.28377021]
[1720751513648,0.03462381,57335.0,57334.0,0.28377021]
[1720751513808,0.03362381,57335.0,57334.0,0.28377021]
[1720751514200,0.03361734,57335.0,57334.0,0.28577021]
[1720751514761,0.01518206,57337.0,57334.0,0.28577021]
[1720751514762,0.00040233,57337.0,57336.0,0.13945721]
[1720751514969,0.06471767,57364.0,57336.0,0.13945721]
[1720751514970,0.51068611,57362.0,57353.0,0.12205]
[1720751515121,0.51068611,57361.0,57360.0,0.13945721]
[1720751515333,0.06471767,57371.0,57370.0,0.13945721]
[1720751515568,0.00083,57378.0,57373.0,0.03747621]
[1720751515834,0.069892,57374.0,57373.0,0.03747621]
[1720751516060,0.00083,57378.0,57375.0,0.03747621]
[1720751516510,0.00083,57378.0,57376.0,0.09817621]
[1720751516700,0.00083,57378.0,57377.0,0.21935721]
[1720751517747,0.00083,57378.0,57377.0,0.0799]
[1720751517887,0.00083,57378.0,57376.0,0.03747621]
[1720751518826,0.00083,57378.0,57377.0,0.007]
[1720751519438,0.00083,57378.0,57371.0,0.0626]
[1720751519646,0.00083,57378.0,57373.0,0.03747621]
[1720751519846,0.145828,57378.0,57376.0,0.006]
[1720751520414,0.122,57377.0,57376.0,0.006]
[1720751520613,0.366,57377.0,57376.0,0.006]
[1720751520763,1.1429,57377.0,57376.0,0.006]
[1720751520969,1.3131374,57377.0,57376.0,0.006]
[1720751521176,1.47566119,57377.0,57376.0,0.006]
[1720751521375,0.622017,57369.0,57360.0,0.0654]
[1720751521729,0.023,57368.0,57360.0,0.0654]
[1720751521932,0.09196813,57367.0,57360.0,0.0654]
[1720751522521,0.12508553,57367.0,57356.0,0.11297621]
[1720751522960,0.12508553,57367.0,57347.0,0.122062]
[1720751522961,0.5,57360.0,57349.0,0.0654]
[1720751523172,0.122043,57357.0,57349.0,0.0654]
[1720751524225,0.2038,57359.0,57352.0,0.03747621]
[1720751524423,0.01897664,57367.0,57359.0,0.03747621]
[1720751524629,0.14099864,57367.0,57359.0,0.03747621]
[1720751524828,0.12606353,57366.0,57358.0,0.03747621]
[1720751525030,0.12606353,57366.0,57360.0,0.008]
[1720751525358,0.24808753,57366.0,57360.0,0.008]
[1720751525563,0.123,57366.0,57360.0,0.01474572]
[1720751525767,0.123,57366.0,57362.0,0.03747621]
[1720751525972,0.1,57365.0,57362.0,0.03747621]
[1720751526180,0.10483,57367.0,57362.0,0.03747621]
[1720751526385,0.14530652,57371.0,57362.0,0.03747621]
[1720751526588,0.145015,57370.0,57362.0,0.03747621]
[1720751526985,0.004,57366.0,57364.0,0.03747621]
[1720751527199,0.004,57366.0,57355.0,0.08511435]
[1720751527200,0.004,57366.0,57365.0,0.1416]
[1720751527405,0.004,57366.0,57365.0,0.28105721]
[1720751528516,0.01915781,57373.0,57365.0,0.28105721]
[1720751528720,0.325801,57377.0,57367.0,0.03747621]
[1720751528944,0.001,57370.0,57368.0,0.00306353]
[1720751529279,0.001,57370.0,57369.0,0.16786928]
[1720751529486,0.01915025,57377.0,57373.0,0.03747621]
[1720751529907,0.06554767,57378.0,57373.0,0.03747621]
[1720751530133,0.00083,57378.0,57374.0,0.04053974]
[1720751530340,0.00083,57378.0,57377.0,0.13945721]
[1720751530746,0.00083,57378.0,57377.0,0.19975721]
[1720751530982,0.00083,57378.0,57377.0,0.0603]
[1720751531609,0.00083,57378.0,57377.0,0.09777621]
[1720751532747,0.00083,57378.0,57377.0,0.28025721]
[1720751534803,0.00083,57378.0,57377.0,0.1408]
[1720751535029,0.121979,57387.0,57377.0,0.1408]
[1720751535245,0.121979,57387.0,57378.0,0.00306353]
[1720751535464,0.743952,57389.0,57378.0,0.00306353]
[1720751535465,0.121981,57386.0,57378.0,0.00306353]
[1720751535643,0.121981,57386.0,57377.0,0.11797621]
[1720751535878,0.243958,57387.0,57374.0,0.0638]
[1720751536144,0.121987,57383.0,57375.0,0.00306353]
[1720751536414,0.144981,57386.0,57376.0,0.03747621]
[1720751536652,0.121981,57386.0,57378.0,0.03747621]
[1720751536883,0.023,57385.0,57378.0,0.03747621]
[1720751537146,0.144983,57385.0,57377.0,0.001]
[1720751537349,0.144983,57385.0,57376.0,0.03747621]
[1720751537587,0.144983,57385.0,57376.0,0.05780193]
[1720751537796,0.144983,57385.0,57376.0,0.05880193]
[1720751538418,0.121983,57385.0,57376.0,0.11880193]
[1720751538650,0.121983,57385.0,57377.0,0.00306353]
[1720751538867,0.243995,57378.0,57377.0,0.00306353]
[1720751539072,0.243995,57378.0,57376.0,0.001]
[1720751539073,0.122,57377.0,57376.0,0.001]
[1720751539312,0.7038,57383.0,57376.0,0.001]
[1720751539558,0.121988,57383.0,57376.0,0.03747621]
[1720751539781,0.001,57385.0,57376.0,0.03847621]
[1720751540012,0.001,57385.0,57377.0,0.00306353]
[1720751540258,0.5,57383.0,57377.0,0.00306353]
[1720751540491,0.5,57383.0,57373.0,0.03747621]
[1720751540492,0.121996,57379.0,57373.0,0.03747621]
[1720751540723,0.121996,57379.0,57376.0,0.001]
[1720751541198,0.121994,57380.0,57373.0,0.03747621]
[1720751541941,0.1829884,57380.0,57373.0,0.03747621]
[1720751542156,0.121994,57380.0,57374.0,0.03747621]
[1720751542362,0.121991,57382.0,57376.0,0.03747621]
[1720751542608,0.121987,57383.0,57380.0,0.03747621]
[1720751542840,0.121983,57385.0,57381.0,0.0654]
[1720751543067,0.252228,57390.0,57381.0,0.0654]
[1720751543068,0.1,57384.0,57381.0,0.0654]
[1720751543521,0.001,57383.0,57381.0,0.10287621]
[1720751543848,0.001,57383.0,57382.0,0.13945721]
[1720751544171,0.11845106,57389.0,57383.0,0.03747621]
[1720751544380,0.11845106,57389.0,57385.0,0.03647621]
[1720751544584,0.1,57389.0,57387.0,0.03647621]
[1720751545011,0.00828,57390.0,57387.0,0.03647621]
[1720751545124,0.00828,57390.0,57388.0,0.03647621]
[1720751545351,0.00828,57390.0,57387.0,0.03647621]
[1720751545578,0.00828,57390.0,57384.0,0.00306353]
[1720751545779,0.121978,57388.0,57384.0,0.00306353]
[1720751545990,0.121978,57388.0,57382.0,0.0774]
[1720751546875,0.12198,57387.0,57377.0,0.0812]
[1720751547073,0.12198,57387.0,57379.0,0.03647621]
[1720751547274,0.12198,57387.0,57378.0,0.03647621]
[1720751547509,0.365928,57389.0,57380.0,0.03647621]
[1720751547716,0.365928,57389.0,57382.0,0.03647621]
[1720751547927,0.365928,57389.0,57382.0,0.09647621]
[1720751548132,0.00828,57390.0,57378.0,0.00348546]